fUSD/lending_fUSD_20240805
["ID","MTS","AMOUNT","RATE_DAILY","PERIOD"]
[334250105,1722864632365,-163.92747499,0.000109,2]
[334250106,1722864632375,-4605.47552987,0.000109,2]
[334250108,1722864632385,-493.13682606,0.000109,2]
[334250109,1722864632396,-7403.31947776,0.000109,2]
[334250110,1722864632407,-714.37804514,0.000109,2]
[334250111,1722864632418,-346.5263054,0.000109,2]
[334250112,1722864632428,-970.08715885,0.000109,2]
[334250113,1722864632438,-184.78,0.00010959,2]
[334250114,1722864632449,-153.99,0.00010959,2]
[334250115,1722864632459,-769.96,0.00010959,2]
[334250116,1722864632470,-152.77,0.0001099,2]
[334250117,1722864632480,-152.77,0.0001099,2]
[334250118,1722864632492,-152.77,0.0001099,2]
[334250119,1722864632502,-152.77,0.0001099,2]
[334250120,1722864632512,-152.77,0.0001099,2]
[334250121,1722864632535,-152.77,0.0001099,2]
[334250122,1722864632547,-152.77,0.0001099,2]
[334250123,1722864632558,-152.77,0.0001099,2]
[334250124,1722864632568,-152.77,0.0001099,2]
[334250125,1722864632578,-152.77,0.0001099,2]
[334250126,1722864632588,-152.77,0.0001099,2]
[334250127,1722864632600,-152.77,0.0001099,2]
[334250128,1722864632612,-152.77,0.0001099,2]
[334250129,1722864632623,-152.77,0.0001099,2]
[334250130,1722864632633,-152.77,0.0001099,2]
[334250131,1722864632644,-152.77,0.0001099,2]
[334250132,1722864632654,-152.77,0.0001099,2]
[334250133,1722864632664,-152.77,0.0001099,2]
[334250134,1722864632674,-152.77,0.0001099,2]
[334250136,1722864632683,-29172.42454039,0.00010999,2]
[334250138,1722864632695,-263233.34939293,0.00010999,2]
[334250139,1722864632711,-1080.03403641,0.00010999,2]
[334250156,1722864638022,-1694.37457703,0.000103,2]
[334250157,1722864638045,-179.02196662,0.00010997,2]
[334250158,1722864638055,-5541.46251389,0.00010999,2]
[334250159,1722864638071,-1246.03874142,0.00010999,2]
[334250160,1722864638082,-345.37577682,0.00010999,2]
[334250161,1722864638173,-862.80517334,0.00010999,2]
[334250162,1722864638190,-19074.73857867,0.00010999,2]
[334250163,1722864638209,-11129.9312,0.00010999,2]
[334250164,1722864638221,-421.78588728,0.00010999,2]
[334250185,1722864641761,-1458.91842534,0.00010999,2]
[334250186,1722864641774,-391.951146,0.00010999,2]
[334250187,1722864641864,-602.43099611,0.00010999,2]
[334250188,1722864641876,-6138.65207094,0.00010999,2]
[334250189,1722864641888,-998.486475,0.00010999,2]
[334250190,1722864641900,-892.21434118,0.00010999,2]
[334250191,1722864641913,-6200.1,0.00010999,2]
[334250192,1722864641925,-3883.45,0.00010999,2]
[334250193,1722864641937,-4125.98200796,0.00010999,2]
[334250194,1722864642163,-2925.98626232,0.00010999,2]
[334250195,1722864642175,-3015.37057037,0.00010999,2]
[334250196,1722864642186,-8093.91798472,0.00010999,2]
[334250198,1722864642196,-500.0,0.00010999,2]
[334250200,1722864642206,-154.54267485,0.00010999,2]
[334250202,1722864642216,-500.0,0.00010999,2]
[334250204,1722864642227,-550.0,0.00011,2]
[334250206,1722864642237,-45151.13495016,0.00011,2]
[334250208,1722864642249,-18278.57933545,0.00011,2]
[334250210,1722864642260,-38721.42066455,0.00011,2]
[334250250,1722864644538,-197993.85006537,0.00011,2]
[334250251,1722864644550,-2551.14997692,0.00011,2]
[334250252,1722864644587,-1964.73833705,0.00011,2]
[334250253,1722864644598,-8823.99346952,0.00011,2]
[334250254,1722864644627,-1501774.41900058,0.00011,2]
[334250255,1722864644639,-267.45089747,0.00011,2]
[334250256,1722864644650,-342.99995163,0.00011,2]
[334250257,1722864644662,-17286.04645497,0.00011,2]
[334250258,1722864644675,-303874.51326794,0.00011,2]
[334250259,1722864644695,-1022760.55307438,0.00011,2]
[334250260,1722864644706,-20298.03157268,0.00011,2]
[334250261,1722864644718,-2248.95674392,0.00011,2]
[334250262,1722864644740,-1377.53454,0.00011,2]
[334250263,1722864644753,-1691.41408842,0.00011,2]
[334250315,1722864646173,-22595.576348,0.00011,2]
[334250316,1722864646188,-3929.113636,0.00011,2]
[334250317,1722864646201,-690.90239874,0.00011,2]
[334250318,1722864646224,-919.080025,0.00011,2]
[334250319,1722864646235,-1222.62352412,0.00011,2]
[334250320,1722864646294,-422.35,0.00010959,2]
[334250321,1722864646304,-4597.76198495,0.00011,2]
[334250322,1722864646315,-9719.941942,0.00011,2]
[334250323,1722864646332,-12530.39092564,0.00011,2]
[334250325,1722864646344,-1200.6394,0.00011,2]
[334250327,1722864646361,-1115.9174676,0.00011,2]
[334250330,1722864646375,-9714.91664,0.00011,2]
[334250334,1722864646406,-530.6,0.00011,2]
[334250344,1722864890636,200.0,5e-05,30]
[334250345,1722864890686,200.0,5e-05,30]
[334250346,1722864890715,200.0,5e-05,30]
[334250347,1722864890767,200.0,5e-05,30]
[334250348,1722864890802,228.7491432,5e-05,30]
[334250349,1722864996756,891.93599806,6.061e-05,2]
[334250350,1722865016581,200.0,6.031e-05,30]
[334250351,1722865016638,200.0,6.031e-05,30]
[334250352,1722865016690,200.0,6.031e-05,30]
[334250353,1722865016747,200.0,6.031e-05,30]
[334250354,1722865016799,200.0,6.031e-05,30]
[334250355,1722865036160,594.46,8.387e-05,2]
[334250356,1722865041752,891.93599806,6.061e-05,2]
[334250359,1722865120162,265.21397656,7.347e-05,2]
[334250360,1722865123912,891.93599806,7.347e-05,2]
[334250361,1722865156722,-200.0,0.0001013,2]
[334250362,1722865156752,-266.6,0.00010135,2]
[334250363,1722865156781,-183.35678629,0.00010196,2]
[334250364,1722865156807,-445.36842552,0.00010196,2]
[334250365,1722865156833,-3162.14,0.00010216,2]
[334250366,1722865156859,-200.0,0.00010241,2]
[334250367,1722865156888,-250.0,0.00010298,2]
[334250368,1722865156915,-346.4,0.00010376,2]
[334250369,1722865156942,-594.46,0.00010651,2]
[334250370,1722865156966,-162.27,0.00010696,2]
[334250371,1722865156991,-194.76,0.00010744,2]
[334250372,1722865157016,-1000.0,0.00010791,2]
[334250373,1722865157040,-1511.74,0.000109,3]
[334250374,1722865157064,-1173.51,0.000109,2]
[334250375,1722865157090,-499.99,0.000109,2]
[334250376,1722865157442,-346.5263054,0.000109,2]
[334250377,1722865157475,-4935.54631852,0.000109,2]
[334250378,1722865157502,-476.2520301,0.000109,2]
[334250379,1722865157531,-1975.9,0.00010951,2]
[334250380,1722865157557,-150.0,0.00010959,2]
[334250381,1722865157582,-203.68,0.00010959,2]
[334250382,1722865157610,-318.01,0.00010959,2]
[334250383,1722865157636,-265.01,0.00010959,2]
[334250384,1722865157663,-220.84,0.00010959,2]
[334250385,1722865157688,-184.03,0.00010959,2]
[334250386,1722865157713,-150.0,0.00010985,2]
[334250387,1722865157740,-781.0,0.00010986,2]
[334250388,1722865157771,-2812.0,0.00010986,2]
[334250389,1722865157796,-696.0,0.00010986,2]
[334250390,1722865157822,-1860.7009197,0.00010988,2]
[334250391,1722865157846,-500.0,0.00010997,2]
[334250392,1722865157873,-620.41693233,0.00010997,2]
[334250393,1722865157907,-14313.49228214,0.00010998,2]
[334250394,1722865173207,5785.78382525,7.347e-05,2]
[334250395,1722865173229,4214.21617475,7.347e-05,2]
[334250396,1722865213058,347.72213033,8.905e-05,2]
[334250397,1722865226425,162.49206791,8.905e-05,2]
[334250398,1722865230857,526.30586485,8.905e-05,2]
[334250399,1722865242767,891.93599806,8.905e-05,2]
[334250400,1722865252900,347.72213033,8.905e-05,2]
[334250401,1722865278699,1320.16,8.905e-05,2]
[334250402,1722865282192,2189.44563377,8.905e-05,2]
[334250403,1722865282214,7810.55436623,8.905e-05,2]
[334250405,1722865379717,2189.44563377,8.905e-05,2]
[334250406,1722865379740,7810.55436623,8.905e-05,2]
[334250408,1722865489700,2189.44563377,8.905e-05,2]
[334250409,1722865489722,7810.55436623,8.905e-05,2]
[334250412,1722865577791,2189.44563377,8.905e-05,2]
[334250413,1722865577814,7810.55436623,8.905e-05,2]
[334250436,1722865643669,535.01,8.219e-05,2]
[334250445,1722865666881,1654.43563377,8.219e-05,2]
[334250446,1722865666905,8345.56436623,8.219e-05,2]
[334250456,1722865751699,1654.43563377,8.219e-05,2]
[334250457,1722865751730,8345.56436623,8.219e-05,2]
[334250467,1722865832064,-150.0,9.888e-05,2]
[334250468,1722865832074,-385.82,9.916e-05,2]
[334250469,1722865832083,-18536.61585615,9.925e-05,2]
[334250470,1722865832096,-5363.38414385,9.925e-05,2]
[334250471,1722865832106,-150.0,0.00010045,2]
[334250472,1722865832115,-1000.0,0.00010174,2]
[334250473,1722865832126,-150.0,0.00010202,2]
[334250474,1722865832136,-150.0,0.00010359,2]
[334250475,1722865832149,-200.0,0.000104,3]
[334250476,1722865832160,-535.01,0.00010474,2]
[334250477,1722865832169,-500.0,0.000105,3]
[334250478,1722865832179,-150.0,0.00010515,2]
[334250479,1722865832189,-700.0,0.000106,3]
[334250480,1722865832199,-150.0,0.00010672,2]
[334250481,1722865832210,-1000.0,0.000107,3]
[334250482,1722865832220,-300.0,0.00010793,2]
[334250483,1722865832230,-155.08514667,0.00010794,2]
[334250484,1722865832241,-188.93884098,0.00010794,2]
[334250485,1722865832251,-155.0,0.00010794,2]
[334250486,1722865832261,-347.72213033,0.00010794,2]
[334250487,1722865832271,-155.0,0.00010794,2]
[334250488,1722865832280,-192.11793782,0.00010794,2]
[334250489,1722865832290,-476.65214277,0.00010794,2]
[334250490,1722865832299,-270.40100644,0.00010794,2]
[334250491,1722865832309,-158.86466502,0.00010794,2]
[334250492,1722865832319,-1300.0,0.000108,3]
[334250493,1722865832328,-150.0,0.00010829,2]
[334250494,1722865832339,-150.0,0.00010877,2]
[334250495,1722865832349,-250.0,0.00010898,2]
[334250496,1722865832359,-151.81259882,0.000109,2]
[334250497,1722865832369,-184.62182622,0.000109,2]
[334250498,1722865832379,-256.5530564,0.000109,2]
[334250499,1722865832395,-200.0,0.000109,3]
[334250500,1722865832406,-166.44820134,0.000109,2]
[334250501,1722865832415,-1009.26385057,0.000109,2]
[334250502,1722865832425,-346.5263054,0.000109,2]
[334250503,1722865832436,-416.24192316,0.000109,2]
[334250504,1722865832446,-668.80987489,0.000109,2]
[334250505,1722865832455,-2000.0,0.00010959,2]
[334250506,1722865832469,-150.0,0.00010959,2]
[334250507,1722865832479,-250.0,0.00010959,2]
[334250509,1722865832489,-2800.51,0.00010984,2]
[334250511,1722865832500,-153.57996655,0.00010986,2]
[334250513,1722865832510,-153.54,0.00010988,2]
[334250515,1722865832521,-620.4747806,0.00010995,2]
[334250517,1722865832531,-310.2373903,0.00010997,2]
[334250518,1722865832541,-21962.12191787,0.00010998,2]
[334250520,1722865832555,-15011.14076,0.00010998,2]
[334250521,1722865832567,-3132.3393828,0.00010998,2]
[334250523,1722865832579,-155706.70455032,0.00010998,2]
[334250525,1722865832595,-2444.94962726,0.00010998,2]
[334250526,1722865832607,-1712.00290815,0.00010998,2]
[334250527,1722865832619,-89231.58872184,0.00010998,2]
[334250528,1722865832631,-704.92261432,0.00010998,2]
[334250529,1722865832650,-2332.32978955,0.00010998,2]
[334250530,1722865832662,-713.07366266,0.00010998,2]
[334250531,1722865832674,-893.59727248,0.00010998,2]
[334250532,1722865832686,-3164.75000067,0.00010998,2]
[334250533,1722865832697,-2744.26708576,0.00010998,2]
[334250534,1722865832708,-500.0,0.00010998,2]
[334250535,1722865832728,-347.96815075,0.00010998,2]
[334250536,1722865832740,-25603.34444553,0.00010998,2]
[334250537,1722865832752,-60615.92196757,0.00010998,2]
[334250538,1722865832763,-432.92,0.00010998,2]
[334250539,1722865832775,-4476.62455366,0.00010998,2]
[334250540,1722865832786,-1848.27682054,0.00010998,2]
[334250541,1722865832804,-386.53488575,0.00010998,2]
[334250542,1722865832816,-52616.97716292,0.00010998,2]
[334250543,1722865832831,-250.0,0.00010998,2]
[334250544,1722865832843,-404.4999995,0.00010998,2]
[334250545,1722865832855,-1521.76221221,0.00010998,2]
[334250546,1722865832868,-396.35101328,0.00010998,2]
[334250547,1722865832879,-919.70999,0.00010998,2]
[334250548,1722865832894,-2913.56941785,0.00010998,2]
[334250585,1722865838031,-153.36,0.00010959,2]
[334250586,1722865838040,-399673.57228978,0.00010998,2]
[334250587,1722865838080,-618.74932003,0.00010998,2]
[334250588,1722865838092,-1031.40408689,0.00010998,2]
[334250589,1722865838104,-1488.83353088,0.00010998,2]
[334250590,1722865838158,-2118.48446416,0.00010998,2]
[334250591,1722865838170,-2515.47398675,0.00010998,2]
[334250592,1722865838182,-725251.9655332,0.00010998,2]
[334250593,1722865838192,-2409558.18451796,0.00011,2]
[334250676,1722865841261,-3705.05,0.00011,2]
[334250682,1722865841328,-6962.30412191,0.00011,2]
[334250683,1722865841340,-5604.22868825,0.00011,2]
[334250684,1722865841352,-334.47161113,0.00011,2]
[334250685,1722865841403,-1115.29249577,0.00011,2]
[334250686,1722865841476,-1568.29552831,0.00011,2]
[334250687,1722865841489,-405.59229244,0.00011,2]
[334250688,1722865841501,-10357.4,0.00011,2]
[334250725,1722865842312,-1480.06420087,0.00011,2]
[334250726,1722865842323,-441.55785816,0.00011,2]
[334250727,1722865842335,-1873.3,0.00011,2]
[334250728,1722865842351,-722.19529931,0.00011,2]
[334250729,1722865842363,-604.67697234,0.00011,2]
[334250774,1722865843052,-688.7679864,0.00011,2]
[334250776,1722865843065,-717.73472086,0.00011,2]
[334250778,1722865843077,-1779.35827332,0.00011,2]
[334250781,1722865843091,-303874.51326794,0.00011,2]
[334250783,1722865843243,-377.11693109,0.00011,2]
[334250784,1722865843255,-2624.26090848,0.00011,2]
[334250785,1722865843268,-1758.225,0.00011,2]
[334250786,1722865843279,-697.229235,0.00011,2]
[334250787,1722865843291,-11950.19928674,0.00011,2]
[334250789,1722865843361,-25868.99999999,0.00011,2]
[334250911,1722865846670,-708.97842396,0.000109,2]
[334250921,1722865846734,-3343.63172366,0.000109,2]
[334250923,1722865846743,-766.82,0.00010959,2]
[334250925,1722865846753,-1018890.89735389,0.00011,2]
[334250928,1722865846765,-5180.0,0.00011,2]
[334250930,1722865846776,-365.757,0.00011,2]
[334250932,1722865846788,-3198.3589892,0.00011,2]
[334250934,1722865846800,-859.71593629,0.00011,2]
[334250944,1722865847126,-6.75562207,0.00011,2]
[334250945,1722865847139,-1509.39123364,0.00011,2]
[334250946,1722865847150,-2593.04231666,0.00011,2]
[334250947,1722865847162,-260.16699202,0.00011,2]
[334250948,1722865847173,-417.23612472,0.00011,2]
[334250949,1722865847190,-10546.59009491,0.00011,2]
[334250950,1722865847206,-101148.42260967,0.00011,2]
[334250951,1722865847219,-1334735.25902623,0.00011,2]
[334250952,1722865847230,-10000.0,0.00011,2]
[334250953,1722865847240,-15152.66396391,0.00011,3]
[334250954,1722865847249,-250.0,0.00011,2]
[334250955,1722865847259,-299.81326693,0.00011,2]
[334250956,1722865847269,-449.29624025,0.00011,2]
[334250957,1722865847278,-1050.08109978,0.00011,2]
[334250959,1722865847288,-170.4054005,0.00011,2]
[334250961,1722865847299,-162.63203017,0.00011,2]
[334250963,1722865847310,-412.90303818,0.00011,2]
[334250965,1722865847319,-181.72444059,0.00011,2]
[334250967,1722865847329,-2000.0,0.00011,2]
[334250970,1722865847339,-200.0,0.00011,2]
[334250972,1722865847350,-2000.0,0.00011,2]
[334250974,1722865847361,-200.0,0.00011,2]
[334250976,1722865847372,-300.93,0.00011,2]
[334250978,1722865847382,-550.0,0.00011,2]
[334250980,1722865847392,-1999.9999999,0.00011,2]
[334250981,1722865847402,-200.0,0.00011,2]
[334250982,1722865847413,-250.0,0.00011,2]
[334250983,1722865847423,-250.0,0.00011,3]
[334250984,1722865847432,-250.0,0.00011,3]
[334250985,1722865847442,-250.0,0.00011,3]
[334250986,1722865847451,-250.0,0.00011,3]
[334250987,1722865847461,-250.0,0.00011,3]
[334250988,1722865847472,-250.0,0.00011,3]
[334250989,1722865847482,-250.0,0.00011,3]
[334250990,1722865847492,-250.0,0.00011,3]
[334250991,1722865847501,-250.0,0.00011,3]
[334250992,1722865847511,-250.0,0.00011,3]
[334250993,1722865847521,-250.0,0.00011,3]
[334250994,1722865847530,-250.0,0.00011,3]
[334250995,1722865847540,-250.0,0.00011,3]
[334250996,1722865847550,-250.0,0.00011,3]
[334250997,1722865847561,-415.5,0.00011,3]
[334250998,1722865847572,-200.0,0.00011,2]
[334250999,1722865847581,-174.248,0.00011064,2]
[334251000,1722865847591,-686.40870172,0.00011105,2]
[334251001,1722865847600,-696.35,0.00011105,2]
[334251002,1722865847610,-150.99,0.00011105,2]
[334251003,1722865847620,-2515.47398675,0.00011105,2]
[334251004,1722865847629,-190.33206358,0.00011105,2]
[334251005,1722865847639,-588.52773507,0.00011105,2]
[334251006,1722865847648,-7272.30226502,0.00011105,2]
[334251007,1722865847658,-253.33580808,0.00011105,2]
[334251008,1722865847668,-7272.30226502,0.00011105,2]
[334251009,1722865847677,-2000.0,0.0001111,2]
[334251010,1722865847687,-200.0,0.0001111,2]
[334251011,1722865847697,-2000.0,0.0001111,2]
[334251012,1722865847708,-200.0,0.0001111,2]
[334251013,1722865847718,-200.0,0.0001111,2]
[334251014,1722865847728,-200.0,0.0001111,2]
[334251015,1722865847738,-25301.89520735,0.00011186,2]
[334251016,1722865847748,-22639.6617797,0.00011186,2]
[334251017,1722865847757,-10641.97643693,0.00011206,2]
[334251018,1722865847767,-2000.0,0.00011221,2]
[334251019,1722865847776,-200.0,0.00011221,2]
[334251020,1722865847786,-2000.0,0.00011221,2]
[334251021,1722865847814,-200.0,0.00011221,2]
[334251022,1722865847823,-200.0,0.00011221,2]
[334251023,1722865847833,-200.0,0.00011221,2]
[334251024,1722865847842,-210.0129171,0.00011259,2]
[334251025,1722865847851,-2000.0,0.00011333,2]
[334251026,1722865847860,-200.0,0.00011333,2]
[334251027,1722865847869,-2000.0,0.00011333,2]
[334251028,1722865847879,-200.0,0.00011333,2]
[334251029,1722865847889,-200.0,0.00011333,2]
[334251030,1722865847899,-200.0,0.00011333,2]
[334251031,1722865847909,-1000.0,0.00011446,2]
[334251032,1722865847920,-2000.0,0.00011447,2]
[334251033,1722865847929,-200.0,0.00011447,2]
[334251034,1722865847939,-2000.0,0.00011447,2]
[334251035,1722865847948,-200.0,0.00011447,2]
[334251036,1722865847958,-200.0,0.00011447,2]
[334251037,1722865847969,-200.0,0.00011447,2]
[334251038,1722865847979,-1845.12231,0.0001152,2]
[334251039,1722865847989,-1845.12232,0.0001165,2]
[334251040,1722865847998,-1845.12232,0.0001181,2]
[334251041,1722865848007,-15473.55356065,0.0001185,2]
[334251042,1722865848017,-420.0,0.00011872,2]
[334251043,1722865848027,-1845.12232,0.0001196,2]
[334251044,1722865848038,-1845.12232,0.0001212,2]
[334251045,1722865848047,-187.6,0.00012251,2]
[334251046,1722865848057,-1845.12232,0.0001228,2]
[334251047,1722865848067,-5000.0,0.0001236,2]
[334251048,1722865848078,-2260.06379537,0.0001236,2]
[334251049,1722865848088,-4790.36180023,0.00012397,2]
[334251050,1722865848097,-156.79,0.00012467,2]
[334251051,1722865848107,-300510.34482193,0.0001254,2]
[334251052,1722865848117,-5400.48698057,0.0001254,2]
[334251053,1722865848127,-1074.00301579,0.00012666,2]
[334251054,1722865848137,-187.6,0.00012684,2]
[334251055,1722865848146,-155.11625964,0.0001269,2]
[334251056,1722865848156,-1210.0,0.00012693,2]
[334251057,1722865848179,-1184.26383039,0.00012696,2]
[334251058,1722865848190,-1000.0,0.00012718,2]
[334251059,1722865848200,-535.01,0.00012729,2]
[334251060,1722865848209,-158.09691893,0.00012749,2]
[334251061,1722865848223,-203.28844738,0.00012818,2]
[334251062,1722865848233,-628.24443844,0.00012855,2]
[334251063,1722865848243,-628.24443844,0.00012855,2]
[334251064,1722865848252,-155.0,0.00012855,2]
[334251065,1722865848262,-155.0,0.00012855,2]
[334251066,1722865848272,-309.09396936,0.00012928,2]
[334251067,1722865848281,-210.87905514,0.00012928,2]
[334251068,1722865848291,-921.03072838,0.00012995,2]
[334251069,1722865848300,-600.0,0.00013,2]
[334251070,1722865848310,-418.92266229,0.00013,2]
[334251071,1722865848319,-418.92266229,0.00013,2]
[334251072,1722865848329,-587.0,0.00013059,2]
[334251073,1722865848339,-187.6,0.00013117,2]
[334251074,1722865848348,-2144.62791432,0.00013132,2]
[334251075,1722865848358,-2209.36735237,0.00013199,2]
[334251076,1722865848367,-197.15,0.00013204,2]
[334251077,1722865848376,-1405.19425176,0.00013297,2]
[334251078,1722865848386,-363.95283854,0.00013302,2]
[334251079,1722865848396,-363.95283854,0.00013302,2]
[334251080,1722865848406,-2839.42461148,0.00013303,2]
[334251081,1722865848416,-719.52629142,0.0001331,2]
[334251082,1722865848426,-528.60750449,0.00013378,2]
[334251083,1722865848435,-299.30923862,0.00013489,2]
[334251084,1722865848445,-155.0,0.00013489,2]
[334251085,1722865848455,-411.41,0.000135,2]
[334251086,1722865848464,-164.3003689,0.0001351,2]
[334251087,1722865848473,-155.91353429,0.0001351,2]
[334251088,1722865848484,-5003.97278669,0.00013531,2]
[334251089,1722865848494,-187.6,0.00013551,2]
[334251090,1722865848503,-530.75191952,0.00013561,2]
[334251091,1722865848513,-155.0,0.00013561,2]
[334251092,1722865848523,-155.82148776,0.00013579,2]
[334251093,1722865848532,-181.70773519,0.00013579,2]
[334251094,1722865848542,-349.40332406,0.00013579,2]
[334251095,1722865848552,-155.0,0.00013648,2]
[334251096,1722865848562,-296.93307347,0.00013648,2]
[334251097,1722865848571,-155.02874731,0.00013648,2]
[334251098,1722865848581,-155.0,0.00013648,2]
[334251099,1722865848591,-155.0,0.00013648,2]
[334251100,1722865848600,-158.93752759,0.00013648,2]
[334251101,1722865848610,-303.5770843,0.00013648,2]
[334251102,1722865848620,-196.98741999,0.00013648,2]
[334251103,1722865848630,-196.9568717,0.00013648,2]
[334251104,1722865848640,-155.0,0.0001367,2]
[334251105,1722865848650,-157.19721316,0.0001367,2]
[334251106,1722865848659,-155.94145346,0.0001367,2]
[334251107,1722865848669,-183.48911623,0.0001367,2]
[334251108,1722865848680,-155.60666915,0.0001367,2]
[334251109,1722865848689,-159.47000849,0.0001367,2]
[334251110,1722865848699,-155.27619676,0.0001367,2]
[334251111,1722865848709,-518.86884214,0.0001367,2]
[334251112,1722865848719,-155.66449746,0.0001367,2]
[334251113,1722865848729,-200.3325257,0.0001367,2]
[334251114,1722865848739,-357.14442617,0.0001367,2]
[334251115,1722865848749,-206.64332473,0.00013698,2]
[334251116,1722865848758,-303.40369894,0.00013698,2]
[334251117,1722865848768,-174.19,0.00013699,2]
[334251118,1722865848778,-200.0,0.00013699,2]
[334251119,1722865848788,-300.0,0.00013699,2]
[334251120,1722865848798,-300.0,0.00013699,2]
[334251121,1722865848807,-500.0,0.00013699,2]
[334251122,1722865848817,-500.0,0.00013699,2]
[334251123,1722865848828,-500.0,0.00013699,2]
[334251124,1722865848837,-500.0,0.00013699,2]
[334251125,1722865848847,-505.39,0.00013699,2]
[334251126,1722865848868,-500.0,0.00013699,2]
[334251127,1722865848879,-500.0,0.00013699,2]
[334251128,1722865848890,-155.0,0.00013699,2]
[334251129,1722865848900,-155.9127026,0.00013699,2]
[334251130,1722865848910,-155.0,0.00013699,2]
[334251131,1722865848920,-155.0,0.00013699,2]
[334251132,1722865848930,-155.0,0.0001372,2]
[334251133,1722865848940,-300.0,0.00013758,2]
[334251134,1722865848950,-300.0,0.00013758,2]
[334251135,1722865848960,-370.049159,0.00013759,2]
[334251136,1722865848970,-370.049159,0.00013759,2]
[334251137,1722865848980,-210.301423,0.00013759,2]
[334251138,1722865848991,-210.301423,0.00013759,2]
[334251139,1722865849002,-151.0,0.00013759,2]
[334251140,1722865849012,-151.0,0.00013759,2]
[334251141,1722865849022,-151.0,0.00013759,2]
[334251142,1722865849032,-151.0,0.00013759,2]
[334251143,1722865849041,-151.0,0.00013759,2]
[334251144,1722865849052,-151.0,0.00013759,2]
[334251145,1722865849061,-1448.25438,0.00013759,2]
[334251146,1722865849070,-1448.25438,0.00013759,2]
[334251147,1722865849080,-1380.128151,0.00013759,2]
[334251148,1722865849092,-1380.128151,0.00013759,2]
[334251149,1722865849103,-151.0,0.00013759,2]
[334251150,1722865849114,-151.0,0.00013759,2]
[334251151,1722865849125,-151.0,0.00013759,2]
[334251152,1722865849135,-226.027349,0.00013759,2]
[334251153,1722865849146,-151.0,0.00013759,2]
[334251154,1722865849550,-463.693507,0.00013759,2]
[334251155,1722865849560,-151.0,0.00013759,2]
[334251156,1722865849570,-226.027349,0.00013759,2]
[334251157,1722865849579,-151.0,0.00013759,2]
[334251158,1722865849589,-463.693507,0.00013759,2]
[334251159,1722865849598,-151.0,0.00013759,2]
[334251160,1722865849608,-151.0,0.00013759,2]
[334251161,1722865849618,-169.554,0.00013759,2]
[334251162,1722865849629,-151.0,0.00013759,2]
[334251163,1722865849639,-169.554,0.00013759,2]
[334251164,1722865849648,-351.791643,0.00013759,2]
[334251165,1722865849658,-151.0,0.00013759,2]
[334251166,1722865849668,-151.0,0.00013759,2]
[334251167,1722865849678,-351.791643,0.00013759,2]
[334251168,1722865849687,-190.128033,0.00013759,2]
[334251169,1722865849697,-151.0,0.00013759,2]
[334251170,1722865849708,-190.128033,0.00013759,2]
[334251171,1722865849718,-151.0,0.00013759,2]
[334251172,1722865849727,-151.0,0.00013759,2]
[334251173,1722865849737,-277.662857,0.00013759,2]
[334251174,1722865849750,-151.0,0.00013759,2]
[334251175,1722865849759,-151.0,0.00013759,2]
[334251176,1722865849769,-151.0,0.00013759,2]
[334251177,1722865849778,-151.0,0.00013759,2]
[334251178,1722865849789,-166.1,0.00013759,2]
[334251179,1722865849799,-166.1,0.00013759,2]
[334251180,1722865849811,-355.692265,0.00013759,2]
[334251181,1722865849821,-355.692265,0.00013759,2]
[334251182,1722865849831,-151.0,0.00013759,2]
[334251183,1722865849841,-151.0,0.00013759,2]
[334251184,1722865849851,-151.0,0.00013759,2]
[334251185,1722865849861,-151.0,0.00013759,2]